[Event "Titled Tuesday Blitz March 21 Late 2023"]
[White "angelgab3"]
[Black "Rosenberg, Evan S"]
[BlackFideId "2019299"]
[WhiteElo "2512"]
[BlackElo "2332"]
[Result "1-0"]
[Round "04"]
[TimeControl "180+2"]
[Date "2023.03.21"]
[WhiteClock "0:00:19"]
[BlackClock "0:00:18"]

1. e4 {[%clk 0:03:00]}  e5 {[%clk 0:02:59]} 2. Nf3 {[%clk 0:03:00]}  Nc6 {[%clk 0:02:59]} 3. Bb5 {[%clk 0:03:00]}  Nf6 {[%clk 0:02:59]} 4. d3 {[%clk 0:03:00]}  Ne7 {[%clk 0:02:59]} 5. O-O {[%clk 0:02:58]}  c6 {[%clk 0:02:59]} 6. Ba4 {[%clk 0:02:57]}  Ng6 {[%clk 0:02:59]} 7. Re1 {[%clk 0:02:56]}  Bc5 {[%clk 0:02:56]} 8. c3 {[%clk 0:02:55]}  O-O {[%clk 0:02:49]} 9. d4 {[%clk 0:02:53]}  Bb6 {[%clk 0:02:33]} 10. h3 {[%clk 0:02:43]}  d6 {[%clk 0:02:32]} 11. Bc2 {[%clk 0:02:38]}  Re8 {[%clk 0:02:29]} 12. a4 {[%clk 0:02:37]}  a5 {[%clk 0:02:27]} 13. b3 {[%clk 0:02:27]}  Qc7 {[%clk 0:02:11]} 14. Nbd2 {[%clk 0:02:21]}  d5 {[%clk 0:02:01]} 15. dxe5 {[%clk 0:02:15]}  Nxe5 {[%clk 0:01:55]} 16. exd5 {[%clk 0:02:11]}  cxd5 {[%clk 0:01:46]} 17. Nxe5 {[%clk 0:02:10]}  Rxe5 {[%clk 0:01:46]} 18. Nf3 {[%clk 0:02:07]}  Rxe1+ {[%clk 0:01:44]} 19. Qxe1 {[%clk 0:02:08]}  Be6 {[%clk 0:01:40]} 20. Bg5 {[%clk 0:01:26]}  Bxh3 {[%clk 0:01:10]} 21. Be3 {[%clk 0:01:02]}  Be6 {[%clk 0:01:02]} 22. Bxb6 {[%clk 0:01:01]}  Qxb6 {[%clk 0:01:02]} 23. Nd4 {[%clk 0:01:02]}  Re8 {[%clk 0:01:01]} 24. Qd2 {[%clk 0:01:01]}  h6 {[%clk 0:00:56]} 25. Re1 {[%clk 0:01:02]}  Qd8 {[%clk 0:00:50]} 26. f3 {[%clk 0:00:58]}  Bd7 {[%clk 0:00:47]} 27. Kf2 {[%clk 0:00:54]}  Rxe1 {[%clk 0:00:46]} 28. Qxe1 {[%clk 0:00:55]}  Nh5 {[%clk 0:00:42]} 29. Qe5 {[%clk 0:00:45]}  Qh4+ {[%clk 0:00:36]} 30. Kg1 {[%clk 0:00:46]}  Nf6 {[%clk 0:00:25]} 31. Bf5 {[%clk 0:00:28]}  Bxf5 {[%clk 0:00:24]} 32. Nxf5 {[%clk 0:00:29]}  Qg5 {[%clk 0:00:22]} 33. g4 {[%clk 0:00:19]}  h5 {[%clk 0:00:18]} 34. Ne7+ {[%clk 0:00:18]}  Kh7 {[%clk 0:00:18]} 35. Qxg5 {[%clk 0:00:19]} 1-0


[Site "https://www.chess.com"]

[Event "Titled Tuesday Blitz March 21 Late 2023"]
[White "Roberson, Peter T"]
[Black "Stachanczyk, Jacek"]
[WhiteFideId "412384"]
[BlackFideId "1116657"]
[WhiteElo "2346"]
[BlackElo "2084"]
[Result "1/2-1/2"]
[Round "04"]
[TimeControl "180+2"]
[Date "2023.03.21"]
[WhiteClock "0:00:06"]
[BlackClock "0:00:11"]

1. Nf3 {[%clk 0:03:00]}  Nf6 {[%clk 0:02:52]} 2. g3 {[%clk 0:03:01]}  g6 {[%clk 0:02:52]} 3. Bg2 {[%clk 0:03:01]}  Bg7 {[%clk 0:02:53]} 4. O-O {[%clk 0:03:02]}  O-O {[%clk 0:02:53]} 5. d3 {[%clk 0:03:02]}  d5 {[%clk 0:02:53]} 6. Nbd2 {[%clk 0:03:01]}  c5 {[%clk 0:02:53]} 7. e4 {[%clk 0:03:01]}  Nc6 {[%clk 0:02:52]} 8. Re1 {[%clk 0:03:01]}  e5 {[%clk 0:02:41]} 9. exd5 {[%clk 0:02:55]}  Nxd5 {[%clk 0:02:42]} 10. c3 {[%clk 0:02:54]}  Re8 {[%clk 0:02:28]} 11. a4 {[%clk 0:02:52]}  b6 {[%clk 0:02:26]} 12. Nc4 {[%clk 0:02:49]}  Bb7 {[%clk 0:02:23]} 13. Qb3 {[%clk 0:02:40]}  Qd7 {[%clk 0:02:13]} 14. Ng5 {[%clk 0:02:36]}  Rad8 {[%clk 0:01:57]} 15. Ne4 {[%clk 0:02:28]}  Ba8 {[%clk 0:01:34]} 16. Ned6 {[%clk 0:02:24]}  Re6 {[%clk 0:01:32]} 17. Bxd5 {[%clk 0:02:23]}  Rxd6 {[%clk 0:01:29]} 18. Nxd6 {[%clk 0:02:20]}  Qxd6 {[%clk 0:01:30]} 19. Bxf7+ {[%clk 0:02:07]}  Kh8 {[%clk 0:01:30]} 20. Bg5 {[%clk 0:02:07]}  Rf8 {[%clk 0:01:26]} 21. Bd5 {[%clk 0:02:06]}  Na5 {[%clk 0:01:19]} 22. Be7 {[%clk 0:01:58]}  Qxe7 {[%clk 0:01:15]} 23. Qa2 {[%clk 0:01:58]}  Nc6 {[%clk 0:00:52]} 24. Re2 {[%clk 0:01:49]}  Qf6 {[%clk 0:00:47]} 25. Rae1 {[%clk 0:01:48]}  h6 {[%clk 0:00:45]} 26. Qc4 {[%clk 0:01:46]}  Na5 {[%clk 0:00:41]} 27. Qe4 {[%clk 0:01:46]}  Bxd5 {[%clk 0:00:41]} 28. Qxd5 {[%clk 0:01:47]}  Nc6 {[%clk 0:00:40]} 29. h4 {[%clk 0:01:43]}  Kh7 {[%clk 0:00:40]} 30. Qe4 {[%clk 0:01:42]}  h5 {[%clk 0:00:40]} 31. Kg2 {[%clk 0:01:41]}  Qd6 {[%clk 0:00:36]} 32. Re3 {[%clk 0:01:41]}  Ne7 {[%clk 0:00:35]} 33. Rf3 {[%clk 0:01:41]}  Rxf3 {[%clk 0:00:34]} 34. Qxf3 {[%clk 0:01:42]}  Nf5 {[%clk 0:00:34]} 35. Re4 {[%clk 0:01:42]}  Qc6 {[%clk 0:00:28]} 36. Kh2 {[%clk 0:01:16]}  Qd5 {[%clk 0:00:26]} 37. Qe2 {[%clk 0:01:10]}  Nh6 {[%clk 0:00:25]} 38. f3 {[%clk 0:01:03]}  Nf5 {[%clk 0:00:25]} 39. Kg2 {[%clk 0:01:02]}  Qc6 {[%clk 0:00:23]} 40. Kh2 {[%clk 0:00:58]}  Bf6 {[%clk 0:00:23]} 41. f4 {[%clk 0:00:58]}  exf4 {[%clk 0:00:21]} 42. Rxf4 {[%clk 0:00:59]}  Nh6 {[%clk 0:00:20]} 43. Re4 {[%clk 0:00:51]}  Kg7 {[%clk 0:00:20]} 44. Re6 {[%clk 0:00:50]}  Qd5 {[%clk 0:00:20]} 45. Qe4 {[%clk 0:00:46]}  Ng4+ {[%clk 0:00:20]} 46. Kg2 {[%clk 0:00:39]}  Qb3 {[%clk 0:00:19]} 47. Qe2 {[%clk 0:00:33]}  Qxa4 {[%clk 0:00:19]} 48. Re8 {[%clk 0:00:27]}  Qc6+ {[%clk 0:00:19]} 49. Kg1 {[%clk 0:00:26]}  a5 {[%clk 0:00:18]} 50. Qe6 {[%clk 0:00:22]}  Qxe6 {[%clk 0:00:18]} 51. Rxe6 {[%clk 0:00:23]}  b5 {[%clk 0:00:18]} 52. Rc6 {[%clk 0:00:20]}  b4 {[%clk 0:00:18]} 53. Rxc5 {[%clk 0:00:20]}  bxc3 {[%clk 0:00:19]} 54. bxc3 {[%clk 0:00:21]}  a4 {[%clk 0:00:19]} 55. Ra5 {[%clk 0:00:20]}  Bxc3 {[%clk 0:00:19]} 56. Rxa4 {[%clk 0:00:21]}  Kf6 {[%clk 0:00:19]} 57. Kg2 {[%clk 0:00:21]}  Ne5 {[%clk 0:00:18]} 58. d4 {[%clk 0:00:19]}  Ng4 {[%clk 0:00:18]} 59. Kf3 {[%clk 0:00:19]}  Kf5 {[%clk 0:00:18]} 60. Rc4 {[%clk 0:00:18]}  Bb2 {[%clk 0:00:17]} 61. Rc5+ {[%clk 0:00:19]}  Kf6 {[%clk 0:00:17]} 62. Rc6+ {[%clk 0:00:19]}  Kf5 {[%clk 0:00:17]} 63. Rc5+ {[%clk 0:00:20]}  Kf6 {[%clk 0:00:16]} 64. Rc6+ {[%clk 0:00:20]}  Kf7 {[%clk 0:00:16]} 65. Ke4 {[%clk 0:00:14]}  Nf6+ {[%clk 0:00:14]} 66. Ke5 {[%clk 0:00:09]}  Ng4+ {[%clk 0:00:14]} 67. Kd5 {[%clk 0:00:10]}  Ne3+ {[%clk 0:00:13]} 68. Ke4 {[%clk 0:00:10]}  Ng4 {[%clk 0:00:13]} 69. d5 {[%clk 0:00:08]}  Be5 {[%clk 0:00:13]} 70. Ra6 {[%clk 0:00:06]}  Bxg3 {[%clk 0:00:13]} 71. Ra7+ {[%clk 0:00:04]}  Kf6 {[%clk 0:00:12]} 72. Ra6+ {[%clk 0:00:05]}  Kf7 {[%clk 0:00:13]} 73. Ra7+ {[%clk 0:00:06]}  Kf8 {[%clk 0:00:12]} 74. Ra8+ {[%clk 0:00:05]}  Ke7 {[%clk 0:00:13]} 75. Ra7+ {[%clk 0:00:06]}  Ke8 {[%clk 0:00:12]} 76. Ra8+ {[%clk 0:00:04]}  Kd7 {[%clk 0:00:13]} 77. Ra7+ {[%clk 0:00:05]}  Bc7 {[%clk 0:00:13]} 78. Ra6 {[%clk 0:00:04]}  Bd6 {[%clk 0:00:10]} 79. Ra7+ {[%clk 0:00:04]}  Ke8 {[%clk 0:00:10]} 80. Ra6 {[%clk 0:00:03]}  Ke7 {[%clk 0:00:10]} 81. Ra7+ {[%clk 0:00:04]}  Kf6 {[%clk 0:00:11]} 82. Ra6 {[%clk 0:00:04]}  Ke7 {[%clk 0:00:11]} 83. Ra7+ {[%clk 0:00:05]}  Kf6 {[%clk 0:00:10]} 84. Ra6 {[%clk 0:00:06]}  Ke7 {[%clk 0:00:11]} 1/2-1/2


[Site "https://www.chess.com"]

[Event "Titled Tuesday Blitz March 21 Late 2023"]
[White "Sztokbant, Bernardo Vainzoff"]
[Black "Sarkar, Justin"]
[WhiteFideId "2115956"]
[BlackFideId "2010011"]
[WhiteElo "2222"]
[BlackElo "2189"]
[Result "1-0"]
[Round "04"]
[TimeControl "180+2"]
[Date "2023.03.21"]
[WhiteClock "0:01:55"]
[BlackClock "0:00:01"]

1. e4 {[%clk 0:03:00]}  e5 {[%clk 0:02:58]} 2. f4 {[%clk 0:02:59]}  exf4 {[%clk 0:02:56]} 3. Nf3 {[%clk 0:02:58]}  Be7 {[%clk 0:02:56]} 4. Bc4 {[%clk 0:02:57]}  Bh4+ {[%clk 0:02:40]} 5. Kf1 {[%clk 0:02:56]}  d5 {[%clk 0:01:59]} 6. Bxd5 {[%clk 0:02:56]}  Nf6 {[%clk 0:01:42]} 7. Bb3 {[%clk 0:02:55]}  Bg4 {[%clk 0:00:57]} 8. Nc3 {[%clk 0:02:53]}  O-O {[%clk 0:00:48]} 9. d3 {[%clk 0:02:52]}  Nc6 {[%clk 0:00:38]} 10. Ne2 {[%clk 0:02:44]}  Bxf3 {[%clk 0:00:33]} 11. gxf3 {[%clk 0:02:45]}  g5 {[%clk 0:00:31]} 12. Rg1 {[%clk 0:02:41]}  Kh8 {[%clk 0:00:27]} 13. d4 {[%clk 0:02:41]}  Qd7 {[%clk 0:00:26]} 14. Kg2 {[%clk 0:02:21]}  Rad8 {[%clk 0:00:22]} 15. c3 {[%clk 0:02:21]}  Rg8 {[%clk 0:00:17]} 16. Kh1 {[%clk 0:02:16]}  Qh3 {[%clk 0:00:09]} 17. Qf1 {[%clk 0:02:16]}  Qxf1 {[%clk 0:00:06]} 18. Rxf1 {[%clk 0:02:17]}  Rg7 {[%clk 0:00:04]} 19. e5 {[%clk 0:02:17]}  Nd5 {[%clk 0:00:03]} 20. Bd2 {[%clk 0:02:12]}  Nce7 {[%clk 0:00:03]} 21. Bc2 {[%clk 0:02:09]}  Ne3 {[%clk 0:00:02]} 22. Bxe3 {[%clk 0:02:08]}  fxe3 {[%clk 0:00:03]} 23. Ng3 {[%clk 0:02:01]}  h6 {[%clk 0:00:01]} 24. Nh5 {[%clk 0:01:55]} 1-0


[Site "https://www.chess.com"]

[Event "Titled Tuesday Blitz March 21 Late 2023"]
[White "Kashefi, Amir Hosein"]
[Black "sebastianmarinp"]
[WhiteFideId "12557935"]
[WhiteElo "2078"]
[BlackElo "2314"]
[Result "1-0"]
[Round "04"]
[TimeControl "180+2"]
[Date "2023.03.21"]
[WhiteClock "0:01:25"]
[BlackClock "0:00:05"]

1. d4 {[%clk 0:02:59]}  Nf6 {[%clk 0:02:59]} 2. Nf3 {[%clk 0:02:56]}  e6 {[%clk 0:02:59]} 3. g3 {[%clk 0:02:52]}  b5 {[%clk 0:02:59]} 4. Bg2 {[%clk 0:02:53]}  Bb7 {[%clk 0:02:59]} 5. a4 {[%clk 0:02:53]}  b4 {[%clk 0:02:52]} 6. Bg5 {[%clk 0:02:52]}  h6 {[%clk 0:02:49]} 7. Bxf6 {[%clk 0:02:51]}  Qxf6 {[%clk 0:02:49]} 8. O-O {[%clk 0:02:50]}  c5 {[%clk 0:02:45]} 9. c3 {[%clk 0:02:48]}  a5 {[%clk 0:02:37]} 10. Nbd2 {[%clk 0:02:48]}  Nc6 {[%clk 0:02:26]} 11. e3 {[%clk 0:02:41]}  cxd4 {[%clk 0:02:14]} 12. exd4 {[%clk 0:02:41]}  Be7 {[%clk 0:01:55]} 13. Ne4 {[%clk 0:02:36]}  Qg6 {[%clk 0:01:55]} 14. Re1 {[%clk 0:02:36]}  d5 {[%clk 0:01:43]} 15. Ned2 {[%clk 0:02:26]}  O-O {[%clk 0:01:37]} 16. h4 {[%clk 0:02:23]}  Ba6 {[%clk 0:01:30]} 17. Nh2 {[%clk 0:02:14]}  Bd3 {[%clk 0:01:17]} 18. Bf1 {[%clk 0:02:13]}  Rab8 {[%clk 0:01:08]} 19. Bxd3 {[%clk 0:02:05]}  Qxd3 {[%clk 0:01:09]} 20. Re3 {[%clk 0:02:04]}  Qg6 {[%clk 0:01:02]} 21. c4 {[%clk 0:02:04]}  dxc4 {[%clk 0:00:56]} 22. Nxc4 {[%clk 0:02:00]}  Rfd8 {[%clk 0:00:54]} 23. Nf3 {[%clk 0:01:56]}  Bf6 {[%clk 0:00:52]} 24. Rd3 {[%clk 0:01:48]}  e5 {[%clk 0:00:42]} 25. h5 {[%clk 0:01:29]}  Qxh5 {[%clk 0:00:23]} 26. Nfxe5 {[%clk 0:01:28]}  Qxd1+ {[%clk 0:00:21]} 27. Raxd1 {[%clk 0:01:27]}  Bxe5 {[%clk 0:00:18]} 28. dxe5 {[%clk 0:01:27]}  Rxd3 {[%clk 0:00:16]} 29. Rxd3 {[%clk 0:01:28]}  Re8 {[%clk 0:00:11]} 30. f4 {[%clk 0:01:26]}  f6 {[%clk 0:00:10]} 31. Rd6 {[%clk 0:01:25]}  Nb8 {[%clk 0:00:05]} 32. e6 {[%clk 0:01:25]} 1-0


[Site "https://www.chess.com"]

[Event "Titled Tuesday Blitz March 21 Late 2023"]
[White "MunichMouse"]
[Black "Bruedigam, Martin"]
[BlackFideId "24608033"]
[WhiteElo "2308"]
[BlackElo "2331"]
[Result "1-0"]
[Round "04"]
[TimeControl "180+2"]
[Date "2023.03.21"]
[WhiteClock "0:00:15"]
[BlackClock "0:00:02"]

1. d4 {[%clk 0:02:59]}  Nf6 {[%clk 0:02:58]} 2. c4 {[%clk 0:02:59]}  e6 {[%clk 0:02:58]} 3. Nf3 {[%clk 0:02:59]}  a6 {[%clk 0:02:57]} 4. g3 {[%clk 0:02:59]}  b5 {[%clk 0:02:57]} 5. Bg2 {[%clk 0:02:59]}  Bb7 {[%clk 0:02:54]} 6. b3 {[%clk 0:02:56]}  c5 {[%clk 0:02:52]} 7. O-O {[%clk 0:02:54]}  Qb6 {[%clk 0:02:49]} 8. Bb2 {[%clk 0:02:49]}  bxc4 {[%clk 0:02:46]} 9. Na3 {[%clk 0:02:46]}  cxb3 {[%clk 0:02:45]} 10. Nc4 {[%clk 0:02:45]}  Qa7 {[%clk 0:02:45]} 11. Na5 {[%clk 0:02:40]}  Bd5 {[%clk 0:02:40]} 12. axb3 {[%clk 0:02:38]}  Nc6 {[%clk 0:02:36]} 13. Nxc6 {[%clk 0:02:05]}  Bxc6 {[%clk 0:02:37]} 14. Ne5 {[%clk 0:02:05]}  Bxg2 {[%clk 0:02:37]} 15. Kxg2 {[%clk 0:02:06]}  cxd4 {[%clk 0:02:29]} 16. Bxd4 {[%clk 0:02:04]}  Qb7+ {[%clk 0:02:28]} 17. f3 {[%clk 0:02:03]}  Be7 {[%clk 0:02:12]} 18. Qd3 {[%clk 0:01:52]}  O-O {[%clk 0:02:11]} 19. e4 {[%clk 0:01:51]}  d5 {[%clk 0:02:09]} 20. Rfe1 {[%clk 0:01:25]}  dxe4 {[%clk 0:02:08]} 21. fxe4 {[%clk 0:01:25]}  Rfd8 {[%clk 0:02:01]} 22. Qe3 {[%clk 0:01:19]}  Rab8 {[%clk 0:02:00]} 23. Rab1 {[%clk 0:01:09]}  Nd7 {[%clk 0:01:42]} 24. Nc4 {[%clk 0:01:05]}  Rbc8 {[%clk 0:01:19]} 25. Kh3 {[%clk 0:01:02]}  Bc5 {[%clk 0:01:14]} 26. e5 {[%clk 0:00:51]}  Bxd4 {[%clk 0:01:13]} 27. Qxd4 {[%clk 0:00:52]}  Nf8 {[%clk 0:01:02]} 28. Nd6 {[%clk 0:00:48]}  Qf3 {[%clk 0:00:55]} 29. Rf1 {[%clk 0:00:41]}  Qh5+ {[%clk 0:00:54]} 30. Qh4 {[%clk 0:00:37]}  Qxh4+ {[%clk 0:00:53]} 31. Kxh4 {[%clk 0:00:37]}  Rc7 {[%clk 0:00:52]} 32. Nc4 {[%clk 0:00:28]}  Ng6+ {[%clk 0:00:48]} 33. Kh3 {[%clk 0:00:27]}  h6 {[%clk 0:00:42]} 34. Ra1 {[%clk 0:00:26]}  Rc6 {[%clk 0:00:35]} 35. Rfd1 {[%clk 0:00:25]}  Rb8 {[%clk 0:00:29]} 36. Ra3 {[%clk 0:00:23]}  Ne7 {[%clk 0:00:24]} 37. Rd6 {[%clk 0:00:22]}  Rbc8 {[%clk 0:00:18]} 38. Rxa6 {[%clk 0:00:21]}  Rxa6 {[%clk 0:00:16]} 39. Rxa6 {[%clk 0:00:21]}  Rb8 {[%clk 0:00:16]} 40. Ra7 {[%clk 0:00:20]}  Nd5 {[%clk 0:00:16]} 41. Na5 {[%clk 0:00:17]}  h5 {[%clk 0:00:13]} 42. Rb7 {[%clk 0:00:17]}  Rxb7 {[%clk 0:00:12]} 43. Nxb7 {[%clk 0:00:17]}  Nb4 {[%clk 0:00:12]} 44. Nc5 {[%clk 0:00:17]}  Kf8 {[%clk 0:00:10]} 45. Kg2 {[%clk 0:00:17]}  Ke7 {[%clk 0:00:11]} 46. Kf3 {[%clk 0:00:18]}  f6 {[%clk 0:00:11]} 47. Ke4 {[%clk 0:00:18]}  Nc6 {[%clk 0:00:11]} 48. Nd3 {[%clk 0:00:17]}  f5+ {[%clk 0:00:11]} 49. Kf4 {[%clk 0:00:16]}  Nd4 {[%clk 0:00:10]} 50. b4 {[%clk 0:00:16]}  Kd7 {[%clk 0:00:06]} 51. Kg5 {[%clk 0:00:16]}  Kc6 {[%clk 0:00:06]} 52. Kxh5 {[%clk 0:00:16]}  Nf3 {[%clk 0:00:06]} 53. Kg6 {[%clk 0:00:16]}  Nxh2 {[%clk 0:00:06]} 54. Kf7 {[%clk 0:00:13]}  Kd5 {[%clk 0:00:04]} 55. b5 {[%clk 0:00:14]}  Nf3 {[%clk 0:00:03]} 56. b6 {[%clk 0:00:14]}  Kc6 {[%clk 0:00:04]} 57. Kxe6 {[%clk 0:00:14]}  Kxb6 {[%clk 0:00:03]} 58. Kxf5 {[%clk 0:00:14]}  Kc6 {[%clk 0:00:02]} 59. Kg6 {[%clk 0:00:14]}  Kd5 {[%clk 0:00:02]} 60. Kxg7 {[%clk 0:00:15]}  Nxe5 {[%clk 0:00:03]} 61. Nxe5 {[%clk 0:00:14]}  Kxe5 {[%clk 0:00:04]} 62. Kg6 {[%clk 0:00:15]}  Ke6 {[%clk 0:00:02]} 63. g4 {[%clk 0:00:15]}  Ke7 {[%clk 0:00:02]} 64. Kg7 {[%clk 0:00:15]} 1-0


[Site "https://www.chess.com"]

[Event "Titled Tuesday Blitz March 21 Late 2023"]
[White "Donskov, Anatoly"]
[Black "Elaisaz"]
[WhiteFideId "24143413"]
[WhiteElo "2247"]
[BlackElo "2274"]
[Result "1-0"]
[Round "04"]
[TimeControl "180+2"]
[Date "2023.03.21"]
[WhiteClock "0:00:02"]
[BlackClock "0:00:01"]

1. e4 {[%clk 0:03:00]}  c5 {[%clk 0:02:41]} 2. Nf3 {[%clk 0:03:00]}  d6 {[%clk 0:02:40]} 3. d4 {[%clk 0:03:00]}  cxd4 {[%clk 0:02:41]} 4. Nxd4 {[%clk 0:03:01]}  Nf6 {[%clk 0:02:40]} 5. Nc3 {[%clk 0:03:01]}  g6 {[%clk 0:02:40]} 6. Be3 {[%clk 0:03:00]}  Bg7 {[%clk 0:02:39]} 7. f3 {[%clk 0:03:01]}  O-O {[%clk 0:02:37]} 8. Bc4 {[%clk 0:02:58]}  Nc6 {[%clk 0:02:36]} 9. Qd2 {[%clk 0:02:58]}  Bd7 {[%clk 0:02:34]} 10. O-O-O {[%clk 0:02:58]}  Ne5 {[%clk 0:02:34]} 11. Bb3 {[%clk 0:02:58]}  Rc8 {[%clk 0:02:34]} 12. h4 {[%clk 0:02:58]}  Nc4 {[%clk 0:02:31]} 13. Bxc4 {[%clk 0:02:58]}  Rxc4 {[%clk 0:02:32]} 14. h5 {[%clk 0:02:58]}  Nxh5 {[%clk 0:02:31]} 15. g4 {[%clk 0:02:58]}  Nf6 {[%clk 0:02:07]} 16. Qh2 {[%clk 0:02:57]}  Qa5 {[%clk 0:01:36]} 17. Nd5 {[%clk 0:02:44]}  h5 {[%clk 0:01:08]} 18. Nxe7+ {[%clk 0:02:39]}  Kh7 {[%clk 0:01:06]} 19. Kb1 {[%clk 0:02:09]}  Bxg4 {[%clk 0:00:58]} 20. fxg4 {[%clk 0:01:13]}  Nxg4 {[%clk 0:00:58]} 21. Qe2 {[%clk 0:01:13]}  Nxe3 {[%clk 0:00:58]} 22. Qxe3 {[%clk 0:01:13]}  Qe5 {[%clk 0:00:58]} 23. Nef5 {[%clk 0:00:43]}  gxf5 {[%clk 0:00:27]} 24. Rxh5+ {[%clk 0:00:40]}  Kg8 {[%clk 0:00:27]} 25. c3 {[%clk 0:00:20]}  Qxe4+ {[%clk 0:00:26]} 26. Qxe4 {[%clk 0:00:20]}  fxe4 {[%clk 0:00:27]} 27. Nf5 {[%clk 0:00:21]}  Rc7 {[%clk 0:00:12]} 28. Rg1 {[%clk 0:00:19]}  f6 {[%clk 0:00:12]} 29. Nh6+ {[%clk 0:00:20]}  Kh7 {[%clk 0:00:11]} 30. Nf5+ {[%clk 0:00:18]}  Kg8 {[%clk 0:00:12]} 31. Rh4 {[%clk 0:00:16]}  Re8 {[%clk 0:00:10]} 32. Rhg4 {[%clk 0:00:16]}  Kf8 {[%clk 0:00:10]} 33. Nxg7 {[%clk 0:00:15]}  Re5 {[%clk 0:00:09]} 34. Kc2 {[%clk 0:00:09]}  e3 {[%clk 0:00:08]} 35. Kd1 {[%clk 0:00:09]}  e2+ {[%clk 0:00:08]} 36. Ke1 {[%clk 0:00:09]}  d5 {[%clk 0:00:04]} 37. R1g2 {[%clk 0:00:09]}  Rce7 {[%clk 0:00:03]} 38. R2g3 {[%clk 0:00:04]}  f5 {[%clk 0:00:02]} 39. Rg5 {[%clk 0:00:03]}  f4 {[%clk 0:00:01]} 40. Rg2 {[%clk 0:00:02]}  f3 {[%clk 0:00:01]} 41. Rxe5 {[%clk 0:00:02]} 1-0


[Site "https://www.chess.com"]

[Event "Titled Tuesday Blitz March 21 Late 2023"]
[White "Tworuszka, Michal"]
[Black "Wang, Alexander J"]
[WhiteFideId "1117858"]
[BlackFideId "30955270"]
[WhiteElo "2446"]
[BlackElo "2258"]
[Result "1/2-1/2"]
[Round "04"]
[TimeControl "180+2"]
[Date "2023.03.21"]
[WhiteClock "0:00:53"]
[BlackClock "0:00:47"]

1. e4 {[%clk 0:03:00]}  c5 {[%clk 0:02:58]} 2. Nf3 {[%clk 0:03:00]}  d6 {[%clk 0:02:59]} 3. d4 {[%clk 0:03:01]}  cxd4 {[%clk 0:02:59]} 4. Nxd4 {[%clk 0:03:01]}  Nf6 {[%clk 0:02:59]} 5. Nc3 {[%clk 0:03:02]}  g6 {[%clk 0:02:59]} 6. Be3 {[%clk 0:02:59]}  Bg7 {[%clk 0:02:58]} 7. f3 {[%clk 0:02:58]}  O-O {[%clk 0:02:57]} 8. Qd2 {[%clk 0:02:59]}  Nc6 {[%clk 0:02:56]} 9. O-O-O {[%clk 0:02:59]}  d5 {[%clk 0:02:55]} 10. Nxc6 {[%clk 0:02:59]}  bxc6 {[%clk 0:02:55]} 11. Bh6 {[%clk 0:02:59]}  Be6 {[%clk 0:02:49]} 12. Bxg7 {[%clk 0:02:54]}  Kxg7 {[%clk 0:02:50]} 13. e5 {[%clk 0:02:52]}  Nd7 {[%clk 0:02:47]} 14. f4 {[%clk 0:02:44]}  Rb8 {[%clk 0:02:36]} 15. Bd3 {[%clk 0:02:36]}  Qb6 {[%clk 0:02:33]} 16. b3 {[%clk 0:02:28]}  Nc5 {[%clk 0:02:21]} 17. h4 {[%clk 0:02:14]}  Nxd3+ {[%clk 0:02:07]} 18. Qxd3 {[%clk 0:02:00]}  Bf5 {[%clk 0:01:55]} 19. Qd4 {[%clk 0:01:58]}  h5 {[%clk 0:01:47]} 20. Qxb6 {[%clk 0:01:51]}  axb6 {[%clk 0:01:47]} 21. a4 {[%clk 0:01:50]}  e6 {[%clk 0:01:45]} 22. Kb2 {[%clk 0:01:49]}  b5 {[%clk 0:01:31]} 23. axb5 {[%clk 0:01:48]}  cxb5 {[%clk 0:01:32]} 24. Rd4 {[%clk 0:01:41]}  Rfc8 {[%clk 0:01:27]} 25. Rc1 {[%clk 0:01:40]}  Rc5 {[%clk 0:01:23]} 26. Na2 {[%clk 0:01:38]}  Rbc8 {[%clk 0:01:21]} 27. Nb4 {[%clk 0:01:38]}  Be4 {[%clk 0:01:19]} 28. c3 {[%clk 0:01:27]}  Bxg2 {[%clk 0:01:13]} 29. Nd3 {[%clk 0:01:26]}  R5c7 {[%clk 0:01:11]} 30. Rb4 {[%clk 0:01:22]}  Be4 {[%clk 0:01:05]} 31. Nf2 {[%clk 0:01:22]}  Rc5 {[%clk 0:01:03]} 32. Nxe4 {[%clk 0:01:19]}  dxe4 {[%clk 0:01:04]} 33. Rxe4 {[%clk 0:01:19]}  Rd5 {[%clk 0:01:05]} 34. Rd4 {[%clk 0:01:16]}  Rcd8 {[%clk 0:01:02]} 35. Rxd5 {[%clk 0:01:13]}  Rxd5 {[%clk 0:01:02]} 36. c4 {[%clk 0:01:12]}  bxc4 {[%clk 0:01:00]} 37. bxc4 {[%clk 0:01:12]}  Rc5 {[%clk 0:00:57]} 38. Kc3 {[%clk 0:01:11]}  Kf8 {[%clk 0:00:58]} 39. Kb4 {[%clk 0:01:08]}  Rc8 {[%clk 0:00:58]} 40. c5 {[%clk 0:01:08]}  Ke8 {[%clk 0:00:58]} 41. c6 {[%clk 0:01:06]}  Kd8 {[%clk 0:00:57]} 42. Kc5 {[%clk 0:01:06]}  Kc7 {[%clk 0:00:57]} 43. Rb1 {[%clk 0:01:04]}  Rf8 {[%clk 0:00:50]} 44. Rb7+ {[%clk 0:01:04]}  Kc8 {[%clk 0:00:50]} 45. Kd6 {[%clk 0:01:01]}  Rd8+ {[%clk 0:00:49]} 46. Rd7 {[%clk 0:00:53]}  Rxd7+ {[%clk 0:00:46]} 47. cxd7+ {[%clk 0:00:53]}  Kd8 {[%clk 0:00:47]} 48. Kc6 {[%clk 0:00:53]}  g5 {[%clk 0:00:47]} 49. fxg5 {[%clk 0:00:53]}  f6 {[%clk 0:00:47]} 50. gxf6 {[%clk 0:00:53]} 1/2-1/2


[Site "https://www.chess.com"]

[Event "Titled Tuesday Blitz March 21 Late 2023"]
[White "Grot, Blazej"]
[Black "Lauridsen, Jesper Morch"]
[WhiteFideId "21835845"]
[BlackFideId "1401890"]
[WhiteElo "1823"]
[BlackElo "2256"]
[Result "0-1"]
[Round "04"]
[TimeControl "180+2"]
[Date "2023.03.21"]
[WhiteClock "0:01:17"]
[BlackClock "0:00:13"]

1. e4 {[%clk 0:03:00]}  c5 {[%clk 0:02:58]} 2. Nc3 {[%clk 0:03:00]}  e6 {[%clk 0:02:57]} 3. g3 {[%clk 0:03:00]}  d5 {[%clk 0:02:56]} 4. exd5 {[%clk 0:03:00]}  exd5 {[%clk 0:02:56]} 5. Bg2 {[%clk 0:03:01]}  d4 {[%clk 0:02:56]} 6. Ne4 {[%clk 0:03:00]}  Nc6 {[%clk 0:02:56]} 7. d3 {[%clk 0:03:00]}  Be6 {[%clk 0:02:54]} 8. Nf3 {[%clk 0:03:00]}  Be7 {[%clk 0:02:51]} 9. O-O {[%clk 0:03:00]}  Qd7 {[%clk 0:02:48]} 10. Neg5 {[%clk 0:02:59]}  Bd5 {[%clk 0:02:45]} 11. Re1 {[%clk 0:02:55]}  h6 {[%clk 0:02:43]} 12. Ne4 {[%clk 0:02:54]}  O-O-O {[%clk 0:02:40]} 13. Bf4 {[%clk 0:02:53]}  f5 {[%clk 0:02:37]} 14. Ned2 {[%clk 0:02:50]}  g5 {[%clk 0:02:31]} 15. Ne5 {[%clk 0:02:50]}  Nxe5 {[%clk 0:02:24]} 16. Bxe5 {[%clk 0:02:51]}  Nf6 {[%clk 0:02:13]} 17. b4 {[%clk 0:02:48]}  Bxg2 {[%clk 0:02:06]} 18. Kxg2 {[%clk 0:02:48]}  cxb4 {[%clk 0:01:52]} 19. Nc4 {[%clk 0:02:47]}  g4 {[%clk 0:01:39]} 20. Qd2 {[%clk 0:02:37]}  Qd5+ {[%clk 0:01:34]} 21. Kg1 {[%clk 0:02:36]}  Nh7 {[%clk 0:01:20]} 22. Bf4 {[%clk 0:02:32]}  Ng5 {[%clk 0:01:11]} 23. Bxg5 {[%clk 0:02:27]}  hxg5 {[%clk 0:01:02]} 24. Rxe7 {[%clk 0:02:27]}  Rxh2 {[%clk 0:01:01]} 25. Re4 {[%clk 0:01:56]}  Rdh8 {[%clk 0:00:38]} 26. Kf1 {[%clk 0:01:42]}  fxe4 {[%clk 0:00:31]} 27. Qxb4 {[%clk 0:01:40]}  Rh1+ {[%clk 0:00:25]} 28. Ke2 {[%clk 0:01:37]}  exd3+ {[%clk 0:00:23]} 29. Kd2 {[%clk 0:01:36]}  Rxa1 {[%clk 0:00:20]} 30. Nd6+ {[%clk 0:01:29]}  Kb8 {[%clk 0:00:19]} 31. Nb5 {[%clk 0:01:23]}  dxc2 {[%clk 0:00:16]} 32. Kxc2 {[%clk 0:01:20]}  Rc8+ {[%clk 0:00:14]} 33. Kd3 {[%clk 0:01:18]}  Rd1+ {[%clk 0:00:13]} 34. Ke2 {[%clk 0:01:17]}  Qf3# {[%clk 0:00:13]} 0-1


[Site "https://www.chess.com"]